[Event "Torneo Nuevo Centro. Jornada 10"]
[Site "Chess.com"]
[Date "2020.08.21"]
[Round "8"]
[White "Rabbani Perez, Oumaima "]
[Black "Grigorev, Artur "]
[Result "0-1"]
[WhiteElo "711"]
[BlackElo "919"]
[TimeControl "180+2"]
[EndTime "11:59:35 PDT"]
[Termination "Victoria de Arturiog por tiempo"]

1. e3 {[%clk 0:03:01.9]} 1... d5 {[%clk 0:02:58.8]} 2. d4 {[%clk 0:02:57.5]}
2... Bf5 {[%clk 0:02:57.8]} 3. Bb5+ {[%clk 0:02:53]} 3... Nc6 {[%clk 0:02:54.5]}
4. Nf3 {[%clk 0:02:48]} 4... a6 {[%clk 0:02:50.5]} 5. Bd3 {[%clk 0:02:40.3]}
5... Bxd3 {[%clk 0:02:43.4]} 6. cxd3 {[%clk 0:02:39.9]} 6... e6 {[%clk
0:02:32.9]} 7. O-O {[%clk 0:02:28.8]} 7... Bd6 {[%clk 0:02:21.2]} 8. h3 {[%clk
0:02:26.8]} 8... Nf6 {[%clk 0:02:15.4]} 9. Nc3 {[%clk 0:02:25.1]} 9... O-O
{[%clk 0:01:59.6]} 10. Bd2 {[%clk 0:02:11.5]} 10... b5 {[%clk 0:01:37.7]} 11.
Ne2 {[%clk 0:02:01.9]} 11... Rb8 {[%clk 0:01:13.2]} 12. Rc1 {[%clk 0:01:46.7]}
12... Nb4 {[%clk 0:00:58.1]} 13. a3 {[%clk 0:01:42.3]} 13... Na2 {[%clk
0:00:54.8]} 14. Rc6 {[%clk 0:01:33.6]} 14... Qd7 {[%clk 0:00:41]} 15. Rxa6
{[%clk 0:01:32.9]} 15... Qc8 {[%clk 0:00:31.5]} 16. Rc6 {[%clk 0:01:28.9]} 16...
b4 {[%clk 0:00:26.9]} 17. axb4 {[%clk 0:01:26.1]} 17... Nxb4 {[%clk 0:00:24.5]}
18. Rc1 {[%clk 0:01:22.2]} 18... Nxd3 {[%clk 0:00:20.6]} 19. Ng5 {[%clk
0:01:15.3]} 19... Rxb2 {[%clk 0:00:19.4]} 20. Rc2 {[%clk 0:01:07.4]} 20... Rxc2
{[%clk 0:00:19.7]} 21. Qxc2 {[%clk 0:01:07.5]} 21... Nb4 {[%clk 0:00:15.9]} 22.
Qxh7+ {[%clk 0:01:06.5]} 22... Nxh7 {[%clk 0:00:15.4]} 23. Nf3 {[%clk
0:01:03.7]} 23... Na6 {[%clk 0:00:15]} 24. Ba5 {[%clk 0:00:57.7]} 24... Qa8
{[%clk 0:00:14.1]} 25. Nc1 {[%clk 0:00:46.4]} 25... Nb8 {[%clk 0:00:14]} 26. Bc3
{[%clk 0:00:40.6]} 26... Qa3 {[%clk 0:00:13.7]} 27. Bd2 {[%clk 0:00:20.9]} 27...
Bb4 {[%clk 0:00:14]} 28. Bxb4 {[%clk 0:00:20]} 28... Qxb4 {[%clk 0:00:14.1]} 29.
Ne5 {[%clk 0:00:15.2]} 29... Na6 {[%clk 0:00:11.5]} 30. Nc6 {[%clk 0:00:14.5]}
30... Qb5 {[%clk 0:00:10.7]} 31. Ne7+ {[%clk 0:00:10]} 31... Kh8 {[%clk
0:00:09.2]} 32. Rd1 {[%clk 0:00:04.2]} 32... Qb8 {[%clk 0:00:09.3]} 33. Rd3
{[%clk 0:00:03.9]} 33... Ng5 {[%clk 0:00:08.2]} 34. Ra3 {[%clk 0:00:04.4]} 34...
Nb4 {[%clk 0:00:07.2]} 0

[Event "Torneo Nuevo Centro. Jornada 10"]
[Site "Chess.com"]
[Date "2020.08.21"]
[Round "8"]
[White "Fenollar Jorda, Manolo"]
[Black "Serarols Mabras, Bernat"]
[Result "0-1"]
[WhiteElo "2475"]
[BlackElo "2483"]
[TimeControl "180+2"]
[EndTime "11:59:39 PDT"]
[Termination "Victoria de bernatserarols por abandono"]

1. d4 {[%clk 0:03:01.9]} 1... d5 {[%clk 0:02:59.4]} 2. Nf3 {[%clk 0:03:01.8]}
2... c5 {[%clk 0:03:00.9]} 3. c3 {[%clk 0:03:01.6]} 3... Nf6 {[%clk 0:03:01.2]}
4. e3 {[%clk 0:03:01.5]} 4... Bg4 {[%clk 0:03:01.8]} 5. dxc5 {[%clk 0:02:58.7]}
5... e6 {[%clk 0:03:00]} 6. b4 {[%clk 0:02:58]} 6... Be7 {[%clk 0:02:50.7]} 7.
Be2 {[%clk 0:02:58.8]} 7... O-O {[%clk 0:02:51.3]} 8. O-O {[%clk 0:03:00.2]}
8... b6 {[%clk 0:02:48]} 9. cxb6 {[%clk 0:02:59]} 9... Qxb6 {[%clk 0:02:49.9]}
10. Bb2 {[%clk 0:02:58.7]} 10... Rc8 {[%clk 0:02:47.5]} 11. Nbd2 {[%clk
0:02:59.2]} 11... Nbd7 {[%clk 0:02:48.5]} 12. h3 {[%clk 0:02:58.1]} 12... Bf5
{[%clk 0:02:48.4]} 13. Nb3 {[%clk 0:02:58.2]} 13... Ne4 {[%clk 0:02:46.8]} 14.
Bd3 {[%clk 0:02:52.4]} 14... Nd6 {[%clk 0:02:36.1]} 15. Bxf5 {[%clk 0:02:51.7]}
15... Nxf5 {[%clk 0:02:38]} 16. Nfd4 {[%clk 0:02:49.6]} 16... Nd6 {[%clk
0:02:38.3]} 17. a4 {[%clk 0:02:47.5]} 17... Ne4 {[%clk 0:02:36.6]} 18. Rc1
{[%clk 0:02:46.5]} 18... Ne5 {[%clk 0:02:31.9]} 19. Qe2 {[%clk 0:02:45.1]} 19...
Nc4 {[%clk 0:02:32.3]} 20. a5 {[%clk 0:02:45.1]} 20... Qb7 {[%clk 0:02:29.9]}
21. Ba1 {[%clk 0:02:34]} 21... Bf6 {[%clk 0:02:28.3]} 22. Rfd1 {[%clk
0:02:27.4]} 22... Rc7 {[%clk 0:02:22.2]} 23. f3 {[%clk 0:02:23.3]} 23... Ng3
{[%clk 0:02:20.9]} 24. Qf2 {[%clk 0:02:18]} 24... Bh4 {[%clk 0:02:09.7]} 25. Nc5
{[%clk 0:02:08.7]} 25... Qc8 {[%clk 0:01:43.8]} 26. f4 {[%clk 0:02:05.7]} 26...
Nf5 {[%clk 0:01:41.6]} 27. Qf3 {[%clk 0:02:01.6]} 27... Nfxe3 {[%clk 0:01:39.8]}
28. Rd3 {[%clk 0:01:48.4]} 28... e5 {[%clk 0:01:23.7]} 29. Nb5 {[%clk
0:01:35.7]} 29... Rxc5 {[%clk 0:01:20.6]} 30. bxc5 {[%clk 0:01:28.4]} 30... e4
{[%clk 0:01:21.6]} 31. Qe2 {[%clk 0:01:29.1]} 31... exd3 {[%clk 0:01:22.6]} 32.
Qxd3 {[%clk 0:01:31]} 32... Qxc5 {[%clk 0:01:23.6]} 33. Nd4 {[%clk 0:01:31.7]}
33... Re8 {[%clk 0:01:14.8]} 34. Kh2 {[%clk 0:01:27.9]} 34... Qc7 {[%clk
0:01:08.1]} 35. g3 {[%clk 0:01:26.2]} 35... Bf6 {[%clk 0:01:02.8]} 36. Rb1
{[%clk 0:01:25.8]} 36... Bxd4 {[%clk 0:00:58.7]} 37. cxd4 {[%clk 0:01:26.3]}
37... h5 {[%clk 0:00:58.5]} 38. a6 {[%clk 0:01:20]} 38... h4 {[%clk 0:00:58.8]}
39. Rb7 {[%clk 0:01:21]} 39... hxg3+ {[%clk 0:00:59.9]} 40. Kxg3 {[%clk
0:01:22.5]} 40... Qc6 {[%clk 0:00:58.8]} 41. Rxa7 {[%clk 0:01:13.3]} 41... Qf6
{[%clk 0:00:58.4]} 42. Bc3 {[%clk 0:01:09.4]} 42... Nf5+ {[%clk 0:00:58.1]} 43.
Kh2 {[%clk 0:01:08.1]} 43... Re3 {[%clk 0:00:57.9]} 44. Qc2 {[%clk 0:01:03.8]}
44... Qg6 {[%clk 0:00:52.2]} 45. Ra8+ {[%clk 0:00:48.8]} 45... Kh7 {[%clk
0:00:51.2]} 46. Be1 {[%clk 0:00:50]} 46... Rxe1 {[%clk 0:00:48.4]} 47. Qf2
{[%clk 0:00:50.2]} 47... Re3 {[%clk 0:00:45]} 48. a7 {[%clk 0:00:49.8]} 48...
Ra3 {[%clk 0:00:42.6]} 49. Rd8 {[%clk 0:00:44.5]} 49... Rxa7 {[%clk 0:00:41.2]}
50. Rxd5 {[%clk 0:00:45.7]} 50... Nce3 {[%clk 0:00:41.2]} 51. Re5 {[%clk
0:00:40.8]} 51... Rc7 {[%clk 0:00:41.1]} 52. Rc5 {[%clk 0:00:40.1]} 52... Rxc5
{[%clk 0:00:41]} 53. dxc5 {[%clk 0:00:42]} 53... Qc6 {[%clk 0:00:41.1]} 0

[Event "Torneo Nuevo Centro. Jornada 10"]
[Site "Chess.com"]
[Date "2020.08.21"]
[Round "8"]
[White "Sos Andreu, Eric"]
[Black "Chernikov, Vladimir"]
[Result "1-0"]
[WhiteElo "2516"]
[BlackElo "2220"]
[TimeControl "180+2"]
[EndTime "11:59:41 PDT"]
[Termination "Victoria de ericovski por tiempo"]

1. d4 {[%clk 0:03:01.9]} 1... Nf6 {[%clk 0:03:00.4]} 2. c4 {[%clk 0:03:02.7]}
2... e5 {[%clk 0:03:00.9]} 3. dxe5 {[%clk 0:03:03.1]} 3... Ng4 {[%clk
0:03:01.9]} 4. Bf4 {[%clk 0:03:04.2]} 4... g5 {[%clk 0:03:03]} 5. Bg3 {[%clk
0:03:03.9]} 5... Bg7 {[%clk 0:03:02.4]} 6. Nf3 {[%clk 0:03:03.1]} 6... Nc6
{[%clk 0:03:01.7]} 7. h4 {[%clk 0:03:01.7]} 7... Ngxe5 {[%clk 0:03:00.6]} 8.
Nxe5 {[%clk 0:02:55.1]} 8... Nxe5 {[%clk 0:02:59]} 9. e4 {[%clk 0:02:39.9]} 9...
d6 {[%clk 0:02:51.7]} 10. Nc3 {[%clk 0:02:37.6]} 10... g4 {[%clk 0:02:45.1]} 11.
h5 {[%clk 0:02:37.6]} 11... h6 {[%clk 0:02:45.5]} 12. Bh4 {[%clk 0:02:29.6]}
12... Qd7 {[%clk 0:02:44.3]} 13. Nd5 {[%clk 0:02:25.4]} 13... O-O {[%clk
0:02:44.1]} 14. Qd2 {[%clk 0:02:19]} 14... f5 {[%clk 0:02:17.5]} 15. exf5 {[%clk
0:02:11.5]} 15... c6 {[%clk 0:01:37.2]} 16. Ne7+ {[%clk 0:02:03.3]} 16... Kh7
{[%clk 0:01:37.2]} 17. O-O-O {[%clk 0:02:03.3]} 17... Rf7 {[%clk 0:01:14]} 18.
Qxd6 {[%clk 0:01:55.3]} 18... Qxd6 {[%clk 0:01:09.1]} 19. Rxd6 {[%clk
0:01:57.2]} 19... Bxf5 {[%clk 0:01:07.8]} 20. Nxf5 {[%clk 0:01:52.9]} 20... Rxf5
{[%clk 0:01:09.7]} 21. Bg3 {[%clk 0:01:47]} 21... Re8 {[%clk 0:00:45.2]} 22. Be2
{[%clk 0:01:38.1]} 22... Nxc4 {[%clk 0:00:28.5]} 23. Bxc4 {[%clk 0:01:34.5]}
23... Rc5 {[%clk 0:00:29.6]} 24. b3 {[%clk 0:01:24.4]} 24... b5 {[%clk
0:00:30.4]} 25. Rd2 {[%clk 0:00:42.7]} 25... bxc4 {[%clk 0:00:30.4]} 26. bxc4
{[%clk 0:00:43.9]} 26... Rxc4+ {[%clk 0:00:27.9]} 27. Rc2 {[%clk 0:00:45.2]}
27... Rb4 {[%clk 0:00:16]} 28. Rd1 {[%clk 0:00:44.8]} 28... Rb7 {[%clk
0:00:08.6]} 29. Rxc6 {[%clk 0:00:45.1]} 29... Bh8 {[%clk 0:00:05.1]} 30. Rc2
{[%clk 0:00:38]} 30... Bf6 {[%clk 0:00:04.5]} 31. Bf4 {[%clk 0:00:34.1]} 31...
a5 {[%clk 0:00:05.1]} 32. Rd6 {[%clk 0:00:32.2]} 32... Bg7 {[%clk 0:00:04.9]}
33. Kd2 {[%clk 0:00:30.4]} 33... a4 {[%clk 0:00:04.5]} 34. Be3 {[%clk
0:00:15.9]} 34... Bf8 {[%clk 0:00:03.8]} 35. Rd5 {[%clk 0:00:13.8]} 35... Bb4+
{[%clk 0:00:04.1]} 36. Kd3 {[%clk 0:00:14]} 36... a3 {[%clk 0:00:03.8]} 37. Rc6
{[%clk 0:00:14.3]} 37... Bf8 {[%clk 0:00:03.9]} 38. Bd4 {[%clk 0:00:11.2]} 1

[Event "Torneo Nuevo Centro. Jornada 10"]
[Site "Chess.com"]
[Date "2020.08.21"]
[Round "8"]
[White "Martínez Escandell, Alfonso"]
[Black "Pedros Viudes, Santiago"]
[Result "1-0"]
[WhiteElo "1895"]
[BlackElo "1924"]
[TimeControl "180+2"]
[EndTime "11:59:43 PDT"]
[Termination "Victoria de Alfonso10 por abandono"]

1. e4 {[%clk 0:03:01.9]} 1... Nc6 {[%clk 0:03:01]} 2. Nf3 {[%clk 0:03:01.5]}
2... e5 {[%clk 0:03:01.9]} 3. Bb5 {[%clk 0:02:59.1]} 3... a6 {[%clk 0:02:54.9]}
4. Ba4 {[%clk 0:02:59.9]} 4... Nf6 {[%clk 0:02:44.4]} 5. c3 {[%clk 0:03:00.3]}
5... Bc5 {[%clk 0:02:33.6]} 6. O-O {[%clk 0:02:57.8]} 6... O-O {[%clk 0:02:33]}
7. d4 {[%clk 0:02:55.7]} 7... exd4 {[%clk 0:02:34.9]} 8. e5 {[%clk 0:02:54.7]}
8... Nd5 {[%clk 0:02:10.3]} 9. cxd4 {[%clk 0:02:56.6]} 9... Ba7 {[%clk
0:01:56.6]} 10. Bg5 {[%clk 0:02:47.8]} 10... Qe8 {[%clk 0:01:51.4]} 11. Bb3
{[%clk 0:02:44.9]} 11... Nce7 {[%clk 0:01:40.5]} 12. Qd3 {[%clk 0:02:41]} 12...
h6 {[%clk 0:01:22.1]} 13. Bxe7 {[%clk 0:02:23.1]} 13... Nxe7 {[%clk 0:01:22.1]}
14. Re1 {[%clk 0:02:21.3]} 14... Ng6 {[%clk 0:01:16.2]} 15. Qxg6 {[%clk
0:02:18.6]} 15... Kh8 {[%clk 0:01:16.2]} 16. Qd3 {[%clk 0:02:12.8]} 16... Qe7
{[%clk 0:01:14.2]} 17. Nc3 {[%clk 0:02:11]} 17... b5 {[%clk 0:01:15]} 18. Bc2
{[%clk 0:02:01.7]} 18... g6 {[%clk 0:01:14.7]} 19. Qe4 {[%clk 0:01:58.3]} 19...
Rb8 {[%clk 0:01:13.2]} 20. Nd5 {[%clk 0:01:55.4]} 20... Qd8 {[%clk 0:01:13.7]}
21. Nf6 {[%clk 0:01:46.2]} 21... d5 {[%clk 0:01:02.6]} 22. Qh4 {[%clk
0:01:42.9]} 22... Kg7 {[%clk 0:01:00.9]} 23. Rac1 {[%clk 0:01:32]} 23... Rb6
{[%clk 0:00:54.4]} 24. Qg3 {[%clk 0:01:27.3]} 24... Re6 {[%clk 0:00:32.6]} 25.
Bb3 {[%clk 0:01:14.5]} 25... c6 {[%clk 0:00:29.2]} 26. Nh5+ {[%clk 0:01:11.9]}
26... Kh7 {[%clk 0:00:28.9]} 27. Nf4 {[%clk 0:01:09.9]} 27... Qe8 {[%clk
0:00:11.5]} 28. Nxe6 {[%clk 0:01:08.3]} 28... Bxe6 {[%clk 0:00:13.4]} 29. Qf4
{[%clk 0:00:56.7]} 29... Qd7 {[%clk 0:00:14.1]} 30. Re2 {[%clk 0:00:43.3]} 30...
Rc8 {[%clk 0:00:15.1]} 31. Qh4 {[%clk 0:00:39.9]} 31... Kg7 {[%clk 0:00:13]} 32.
Qf6+ {[%clk 0:00:38.9]} 32... Kh7 {[%clk 0:00:14.3]} 33. Rec2 {[%clk 0:00:32.5]}
33... a5 {[%clk 0:00:12]} 34. a3 {[%clk 0:00:29.8]} 34... a4 {[%clk 0:00:12.5]}
35. Ba2 {[%clk 0:00:29.7]} 35... Bg4 {[%clk 0:00:13.9]} 36. Rxc6 {[%clk
0:00:24.8]} 36... Rxc6 {[%clk 0:00:14.5]} 37. Qxc6 {[%clk 0:00:25.8]} 37... Qf5
{[%clk 0:00:15.7]} 38. Rc3 {[%clk 0:00:17.9]} 38... Qf4 {[%clk 0:00:13]} 39. Qf6
{[%clk 0:00:17.2]} 1

[Event "Torneo Nuevo Centro. Jornada 10"]
[Site "Chess.com"]
[Date "2020.08.21"]
[Round "8"]
[White "Gracia Calvo, Andrés"]
[Black "Mellado Sais, Carles"]
[Result "1-0"]
[WhiteElo "1792"]
[BlackElo "1392"]
[TimeControl "180+2"]
[EndTime "12:00:07 PDT"]
[Termination "Victoria de andresjaque21 por jaque mate"]

1. d4 {[%clk 0:03:01.9]} 1... Nf6 {[%clk 0:02:59.5]} 2. Nf3 {[%clk 0:03:02.9]}
2... g6 {[%clk 0:02:56.4]} 3. Bf4 {[%clk 0:03:04]} 3... Bg7 {[%clk 0:02:53.9]}
4. e3 {[%clk 0:03:04.9]} 4... O-O {[%clk 0:02:50.7]} 5. c4 {[%clk 0:03:04.8]}
5... d6 {[%clk 0:02:48.4]} 6. Nc3 {[%clk 0:03:04.9]} 6... Nbd7 {[%clk
0:02:47.6]} 7. h3 {[%clk 0:03:05.1]} 7... Re8 {[%clk 0:02:46.6]} 8. Be2 {[%clk
0:03:05.5]} 8... e5 {[%clk 0:02:39.8]} 9. dxe5 {[%clk 0:03:05.9]} 9... dxe5
{[%clk 0:02:38.6]} 10. Nxe5 {[%clk 0:03:05.8]} 10... Nxe5 {[%clk 0:02:38.3]} 11.
Qxd8 {[%clk 0:03:05.6]} 11... Rxd8 {[%clk 0:02:37]} 12. Bxe5 {[%clk 0:03:06.2]}
12... c6 {[%clk 0:02:18.8]} 13. Rd1 {[%clk 0:03:03.9]} 13... Bf5 {[%clk
0:02:16]} 14. g4 {[%clk 0:02:51.8]} 14... Be6 {[%clk 0:02:12.9]} 15. f4 {[%clk
0:02:44.5]} 15... Rxd1+ {[%clk 0:01:55.3]} 16. Bxd1 {[%clk 0:02:35.6]} 16...
Bxc4 {[%clk 0:01:52.3]} 17. b3 {[%clk 0:02:25.6]} 17... Bd5 {[%clk 0:01:49.5]}
18. Nxd5 {[%clk 0:02:22.7]} 18... Nxd5 {[%clk 0:01:47.8]} 19. Bxg7 {[%clk
0:02:20.1]} 19... Kxg7 {[%clk 0:01:45.6]} 20. Kf2 {[%clk 0:02:19.1]} 20... Re8
{[%clk 0:01:44.6]} 21. Re1 {[%clk 0:02:17.4]} 21... Nc3 {[%clk 0:01:41.1]} 22.
a3 {[%clk 0:02:09.1]} 22... f5 {[%clk 0:01:34]} 23. Bc2 {[%clk 0:02:05]} 23...
fxg4 {[%clk 0:01:31.8]} 24. hxg4 {[%clk 0:02:05.1]} 24... Kf6 {[%clk 0:01:27.9]}
25. e4 {[%clk 0:02:04.1]} 25... g5 {[%clk 0:01:15.9]} 26. e5+ {[%clk 0:01:53.2]}
26... Ke6 {[%clk 0:01:11.2]} 27. f5+ {[%clk 0:01:46.7]} 27... Kd5 {[%clk
0:01:10.4]} 28. e6 {[%clk 0:01:43.4]} 28... Nb5 {[%clk 0:01:04.9]} 29. a4 {[%clk
0:01:35.4]} 29... Nd6 {[%clk 0:01:03.6]} 30. Rd1+ {[%clk 0:01:27.3]} 30... Kc5
{[%clk 0:00:59.3]} 31. b4+ {[%clk 0:01:21]} 31... Kb6 {[%clk 0:00:58.4]} 32.
Rxd6 {[%clk 0:01:20.5]} 32... Kc7 {[%clk 0:00:57.7]} 33. Rd7+ {[%clk 0:01:20]}
33... Kc8 {[%clk 0:00:56.7]} 34. Rxh7 {[%clk 0:01:19.6]} 34... Rd8 {[%clk
0:00:56.5]} 35. Ke3 {[%clk 0:01:19.7]} 35... Re8 {[%clk 0:00:55.9]} 36. Bb3
{[%clk 0:01:18.7]} 36... a6 {[%clk 0:00:50]} 37. f6 {[%clk 0:01:18]} 37... Kd8
{[%clk 0:00:46.7]} 38. e7+ {[%clk 0:01:13.7]} 38... Kd7 {[%clk 0:00:46.4]} 39.
Bc2 {[%clk 0:01:08.7]} 39... b5 {[%clk 0:00:40.8]} 40. axb5 {[%clk 0:01:08]}
40... cxb5 {[%clk 0:00:31.7]} 41. Bf5+ {[%clk 0:01:07.8]} 41... Kd6 {[%clk
0:00:29]} 42. Kd4 {[%clk 0:01:07.6]} 42... Kc6 {[%clk 0:00:21.3]} 43. Ke5 {[%clk
0:01:04.8]} 43... a5 {[%clk 0:00:21.5]} 44. bxa5 {[%clk 0:01:04.8]} 44... b4
{[%clk 0:00:22.3]} 45. Ke6 {[%clk 0:01:02.9]} 45... b3 {[%clk 0:00:22.5]} 46. f7
{[%clk 0:01:03.1]} 46... Rb8 {[%clk 0:00:22.1]} 47. e8=Q+ {[%clk 0:01:01.6]}
47... Rxe8+ {[%clk 0:00:19.8]} 48. fxe8=Q+ {[%clk 0:01:01.5]} 48... Kc5 {[%clk
0:00:16.6]} 49. Qd8 {[%clk 0:00:58.3]} 49... b2 {[%clk 0:00:16.5]} 50. Rc7+
{[%clk 0:00:58.7]} 50... Kb5 {[%clk 0:00:14.3]} 51. Qb8+ {[%clk 0:00:59.1]}
51... Ka4 {[%clk 0:00:15]} 52. a6 {[%clk 0:00:55.3]} 52... b1=Q {[%clk
0:00:10.8]} 53. Qxb1 {[%clk 0:00:54.7]} 53... Ka5 {[%clk 0:00:09.8]} 54. a7
{[%clk 0:00:54.7]} 54... Ka4 {[%clk 0:00:09.1]} 55. a8=Q# {[%clk 0:00:54]} 1

[Event "Torneo Nuevo Centro. Jornada 10"]
[Site "Chess.com"]
[Date "2020.08.21"]
[Round "8"]
[White "Gimenez Saiz, Jose Raul"]
[Black "Beneyto de Ramon, Guillermo"]
[Result "1-0"]
[WhiteElo "1889"]
[BlackElo "1660"]
[TimeControl "180+2"]
[EndTime "12:00:12 PDT"]
[Termination "Victoria de rango013 por jaque mate"]

1. d4 {[%clk 0:00:35.7]} 1... d5 {[%clk 0:02:58.2]} 2. e3 {[%clk 0:00:35.4]}
2... e6 {[%clk 0:02:58.5]} 3. Bd3 {[%clk 0:00:33.7]} 3... c6 {[%clk 0:02:58.4]}
4. f4 {[%clk 0:00:34.7]} 4... f5 {[%clk 0:02:59.2]} 5. Nf3 {[%clk 0:00:31.3]}
5... Nf6 {[%clk 0:02:59.5]} 6. O-O {[%clk 0:00:15.7]} 6... Bd6 {[%clk
0:02:59.6]} 7. b3 {[%clk 0:00:14.5]} 7... Qc7 {[%clk 0:02:59.5]} 8. c4 {[%clk
0:00:14.7]} 8... O-O {[%clk 0:02:56.4]} 9. Ba3 {[%clk 0:00:13.3]} 9... Bxa3
{[%clk 0:02:55.4]} 10. Nxa3 {[%clk 0:00:14.1]} 10... Nbd7 {[%clk 0:02:55.2]} 11.
Nb1 {[%clk 0:00:13.8]} 11... Qd6 {[%clk 0:02:53.9]} 12. Nc3 {[%clk 0:00:14.3]}
12... Qe7 {[%clk 0:02:51.9]} 13. Ne5 {[%clk 0:00:14.1]} 13... Nxe5 {[%clk
0:02:51.9]} 14. fxe5 {[%clk 0:00:13.7]} 14... Ne4 {[%clk 0:02:52.1]} 15. Bxe4
{[%clk 0:00:13.7]} 15... fxe4 {[%clk 0:02:52.6]} 16. Rxf8+ {[%clk 0:00:13.1]}
16... Qxf8 {[%clk 0:02:53.2]} 17. Qd2 {[%clk 0:00:13.1]} 17... Bd7 {[%clk
0:02:50.9]} 18. Rf1 {[%clk 0:00:13.1]} 18... Qe7 {[%clk 0:02:50.5]} 19. Qf2
{[%clk 0:00:13.7]} 19... Be8 {[%clk 0:02:40.2]} 20. g4 {[%clk 0:00:13.1]} 20...
Bg6 {[%clk 0:02:40.1]} 21. Ne2 {[%clk 0:00:11.3]} 21... Rf8 {[%clk 0:02:20.6]}
22. Qxf8+ {[%clk 0:00:11.6]} 22... Qxf8 {[%clk 0:02:22.5]} 23. Rxf8+ {[%clk
0:00:12.8]} 23... Kxf8 {[%clk 0:02:24.4]} 24. Nf4 {[%clk 0:00:13.4]} 24... Ke7
{[%clk 0:02:24.3]} 25. c5 {[%clk 0:00:14.3]} 25... Kf7 {[%clk 0:02:22.8]} 26. h4
{[%clk 0:00:15.1]} 26... h6 {[%clk 0:02:23.2]} 27. Kf2 {[%clk 0:00:15.2]} 27...
Bh7 {[%clk 0:02:21.6]} 28. Kg3 {[%clk 0:00:15.4]} 28... g5 {[%clk 0:02:22.5]}
29. hxg5 {[%clk 0:00:16.1]} 29... hxg5 {[%clk 0:02:24.4]} 30. Ne2 {[%clk
0:00:15.8]} 30... Ke7 {[%clk 0:02:24.9]} 31. Ng1 {[%clk 0:00:16]} 31... Bg6
{[%clk 0:02:20.3]} 32. Nh3 {[%clk 0:00:16.6]} 32... b6 {[%clk 0:02:16.3]} 33.
Nxg5 {[%clk 0:00:17.1]} 33... bxc5 {[%clk 0:02:11.7]} 34. dxc5 {[%clk
0:00:17.7]} 34... a5 {[%clk 0:02:04.4]} 35. Nh3 {[%clk 0:00:18]} 35... Kd7
{[%clk 0:02:00.3]} 36. Nf4 {[%clk 0:00:18.1]} 36... Bf5 {[%clk 0:02:00]} 37.
gxf5 {[%clk 0:00:18.3]} 37... exf5 {[%clk 0:02:00.6]} 38. Kh4 {[%clk 0:00:15.4]}
38... Ke7 {[%clk 0:01:59.5]} 39. Kg5 {[%clk 0:00:16.2]} 39... Kf7 {[%clk
0:01:58.9]} 40. Kxf5 {[%clk 0:00:16.7]} 40... Ke7 {[%clk 0:01:57.3]} 41. Ng6+
{[%clk 0:00:16]} 41... Kf7 {[%clk 0:01:57.6]} 42. e6+ {[%clk 0:00:15.2]} 42...
Ke8 {[%clk 0:01:57]} 43. Ne5 {[%clk 0:00:15.8]} 43... d4 {[%clk 0:01:50]} 44.
exd4 {[%clk 0:00:14.3]} 44... e3 {[%clk 0:01:51]} 45. Nf3 {[%clk 0:00:13.4]}
45... Ke7 {[%clk 0:01:47.5]} 46. Ke5 {[%clk 0:00:12.9]} 46... e2 {[%clk
0:01:48.3]} 47. a3 {[%clk 0:00:10.7]} 47... Ke8 {[%clk 0:01:48.6]} 48. Kd6
{[%clk 0:00:11.4]} 48... Kd8 {[%clk 0:01:49.2]} 49. Kxc6 {[%clk 0:00:12.4]}
49... Ke7 {[%clk 0:01:50.7]} 50. d5 {[%clk 0:00:12.6]} 50... Ke8 {[%clk
0:01:48.5]} 51. d6 {[%clk 0:00:13.3]} 51... e1=Q {[%clk 0:01:48]} 52. Nxe1
{[%clk 0:00:13.6]} 52... a4 {[%clk 0:01:46.2]} 53. bxa4 {[%clk 0:00:12.8]} 53...
Kd8 {[%clk 0:01:46.3]} 54. e7+ {[%clk 0:00:10.6]} 54... Ke8 {[%clk 0:01:47.4]}
55. Kc7 {[%clk 0:00:11.3]} 55... Kf7 {[%clk 0:01:46.8]} 56. Kd7 {[%clk
0:00:12.3]} 56... Kf6 {[%clk 0:01:47.7]} 57. e8=Q {[%clk 0:00:13.5]} 57... Kf5
{[%clk 0:01:47.3]} 58. Qe6+ {[%clk 0:00:12.9]} 58... Kf4 {[%clk 0:01:46]} 59.
Ke7 {[%clk 0:00:11.9]} 59... Kg3 {[%clk 0:01:46.2]} 60. d7 {[%clk 0:00:12.4]}
60... Kf2 {[%clk 0:01:44.6]} 61. d8=Q {[%clk 0:00:12.7]} 61... Kg3 {[%clk
0:01:42.7]} 62. Qg6+ {[%clk 0:00:09.6]} 62... Kf4 {[%clk 0:01:43.4]} 63. Qd4#
{[%clk 0:00:10.1]} 1